Cogmind - Beta 9.4 @@@ ROGUE MODE // 2020.01.28 @ 19:09:53 Player: Pimski Result: Destroyed by S-10 Pest with Light Assault Rifle Performance ------------- Evolutions (0) 0 Regions Visited (2) 400 Robots Destroyed (28) 140 Value Destroyed (493) 493 Prototype IDs (0) 0 Alien Tech Used (0) 0 Bonus (0) 0 TOTAL SCORE: 1033 Bonus ------- None Cogmind --------- Core Integrity 0/250 Matter 290/300 Energy 249/250 System Corruption 0% Temperature Cool (0) Movement Rolling (120) Ox2 Location -10/Mines Parts ------- > --- POWER (1) -------- Ion Engine > --- PROPULSION (2) --- Light Treads Compact Wheel > --- UTILITY (2) ------ Large Storage Unit Large Storage Unit > --- WEAPON (2) ------- Light Assault Rifle Heavy Assault Rifle > --- INVENTORY (16) --- Light Angular Momentum Engine Light Treads Light Treads Light Treads Medium Storage Unit Light Armor Plating Light Armor Plating Light Armor Plating Light Armor Plating Hacking Suite Hacking Suite Assault Rifle Light Assault Rifle Light Assault Rifle Light Assault Rifle Mining Claw Peak State ------------ > --- POWER ------------ Ion Engine > --- PROPULSION ------- Light Treads Light Treads > --- UTILITY ---------- Large Storage Unit Large Storage Unit > --- WEAPON ----------- Light Assault Rifle Heavy Assault Rifle > --- INVENTORY -------- Light Angular Momentum Engine Light Treads Light Treads Compact Wheel Medium Storage Unit Medium Storage Unit Light Armor Plating Light Armor Plating Light Armor Plating Hacking Suite Hacking Suite Assault Rifle Light Assault Rifle Light Assault Rifle Light Assault Rifle Mining Claw [Rating: 10] Favorites ----------- Power Ion Engine Engine Ion Engine Propulsion Light Treads Treads Light Treads Leg Aluminum Leg Wheel Compact Wheel Utility Large Storage Unit Storage Large Storage Unit Weapon Light Assault Rifle Energy Gun Medium Laser Ballistic Gun Light Assault Rifle Build | -11 -10 -10 ------- Run | Scr Mat Min Slots Evolved . | . . . Power . | . . . Propulsion . | . . . Utility . | . . . Weapon . | . . . Parts Attached 11 | . 6 5 Power . | . . . Engine . | . . . Core . | . . . Reactor . | . . . Propulsion 5 | . 2 3 Treads 4 | . 2 2 Leg . | . . . Wheel 1 | . . 1 Hover . | . . . Flight . | . . . Utility 3 | . 3 . Device . | . . . Storage 3 | . 3 . Processor . | . . . Hackware . | . . . Protection . | . . . Artifact . | . . . Weapon 3 | . 1 2 Energy Gun . | . . . Energy Cannon . | . . . Ballistic Gun 3 | . 1 2 Ballistic Cannon . | . . . Launcher . | . . . Special Weapon . | . . . Impact Weapon . | . . . Slashing Weapon . | . . . Piercing Weapon . | . . . Special Melee Weapon . | . . . Unidentified Prototypes . | . . . Parts Lost 2 | . 1 1 Power . | . . . Propulsion 1 | . . 1 Utility . | . . . Weapon 1 | . 1 . Highest Loss Streak 1 | . 1 1 Average Slot Usage (%) 99 | . 99 99 Engine 14 | . 14 14 Treads 27 | . 27 27 Storage 27 | . 27 28 Energy Gun 6 | . 14 . Ballistic Gun 21 | . 14 27 Naked Turns . | . . . Heaviest Build 41 | 12 40 41 Greatest Support 40 | 20 40 40 Greatest Overweight (x) 2 | . . 2 Average Overweight (x) . | . . . Largest Inventory Capacity 16 | 6 16 16 Average Capacity 14 | 6 12 16 Most Carried 16 | 6 16 16 Average Carried 13 | 6 10 15 Final Capacity 16 | 6 16 16 Final Carried 16 | 6 16 16 Class Distribution -------------------- 87% | Mutant 12% | Scavenger-Mutant Dominant Class ---------------- Mutant | -10/Materials Mutant | -10/Mines Resources | -11 -10 -10 ----------- Run | Scr Mat Min Matter Collected 387 | 202 94 91 Remotely . | . . . Salvage Created 1023 | 62 548 413 Parts 69 | . 42 27 Haulers Intercepted 2 | . 2 . Recyclers Shooed 3 | . 2 1 Parts Field Recycled . | . . . Retrieved Matter . | . . . Parts Self-Destructed . | . . . Prevented . | . . . Kills | -11 -10 -10 ------- Run | Scr Mat Min Combat Hostiles Destroyed 19 | . 11 8 Guns 19 | . 11 8 Classes Destroyed 7 | 1 5 1 Hauler 2 | . 2 . Recycler 4 | 1 1 2 Operator 2 | . 2 . Watcher 1 | . 1 . Swarmer 11 | . 6 5 Grunt 6 | . 5 1 Sentry 2 | . . 2 Best Kill Streak 5 | 1 5 4 Combat Bots Only 5 | . 5 3 Max Kills in Single Turn 2 | 1 2 1 Gunslinging 1 | . 1 . Exploded . | . . . Melee . | . . . Uniques/NPCs Destroyed . | . . . Combat | -11 -10 -10 -------- Run | Scr Mat Min Damage Taken 914 | . 398 516 Core 254 | . 134 120 Absorbed by Shields . | . . . Core Remaining (%) 100 | 100 . . Volleys Fired 80 | 2 50 28 Largest 2 | 2 2 2 Hottest 70 | 70 70 70 Shots Fired 159 | 4 99 56 Gun 159 | 4 99 56 Cannon . | . . . Launcher . | . . . Special . | . . . Kinetic 104 | 2 50 52 Thermal 55 | 2 49 4 Explosive . | . . . Electromagnetic . | . . . Robot Hit Streak 12 | 3 9 12 Robot Miss Streak 6 | 1 6 2 Penetration Max . | . . . Secondary Targets 5 | . 3 2 Max Gunslinging Chain 1 | . 1 1 Shots Hit Robots 108 | 3 65 40 Core Hits 53 | 2 32 19 Critical Hits 1 | . . 1 Critical Kills 1 | . . 1 Critical Parts Destroyed . | . . . Melee Attacks . | . . . Impact . | . . . Slashing . | . . . Piercing . | . . . Sneak Attacks . | . . . Combat Hostiles . | . . . Follow-up Attacks . | . . . Damage Inflicted 1214 | 33 781 400 Guns 1164 | 33 742 389 Cannons . | . . . Explosions . | . . . Melee . | . . . Ramming 50 | . 39 11 Kinetic 622 | 7 263 352 Thermal 542 | 26 479 37 Explosive . | . . . Electromagnetic . | . . . Impact . | . . . Slashing . | . . . Piercing . | . . . Highest Corruption . | . . . Average Corruption . | . . . Corruption Purged . | . . . Overload Shots . | . . . Overflow Damage . | . . . Projectiles . | . . . Explosions . | . . . Melee . | . . . Knockbacks . | . . . Impact . | . . . Kinetic . | . . . Secondary . | . . . Self-Inflicted Damage . | . . . Shots . | . . . Rammed 12 | . 7 5 Targets Rammed 12 | . 7 5 Kicked . | . . . Crushed . | . . . Highest Temperature 202 | 40 202 60 Average Temperature 49 | 20 56 18 Received Heat Transfer 198 | . 90 108 Siege Activations . | . . . Robots Corrupted . | . . . Combat Hostiles . | . . . Parts Fried . | . . . Impact Corruptions . | . . . Robots Melted . | . . . Combat Hostiles . | . . . Parts Melted . | . . . Heat Transferred 1591 | 74 1406 111 Parts Sabotaged . | . . . Parts Stolen . | . . . Parts Stripped . | . . . Power Chain Reactions . | . . . Missiles Intercepted . | . . . Alert | -11 -10 -10 ------- Run | Scr Mat Min Peak Influence 260 | 5 260 176 Average Influence 106 | 3 134 83 Maximum Alert Level 1 | . 1 . Low Security (%) 85 | 100 69 100 Level 1 14 | . 30 . Level 2 . | . . . Level 3 . | . . . Level 4 . | . . . Level 5 . | . . . High Security . | . . . Max Security . | . . . Squads Dispatched 2 | . 2 . Investigation . | . . . Extermination . | . . . Reinforcement 2 | . 2 . Assault . | . . . Garrison . | . . . Intercept . | . . . Construction Impeded . | . . . Haulers Reinforced . | . . . Stealth | -11 -10 -10 --------- Run | Scr Mat Min Distress Signals 1 | . 1 . Communications Jammed . | . . . Distress Signals . | . . . Times Spotted 31 | . 18 13 Peak Tracking Total 5 | . 5 3 Tactical Retreats 4 | . 1 3 Traps | -11 -10 -10 ------- Run | Scr Mat Min Traps Triggered 1 | . 1 . Indirectly . | . . . Trap Hack Attempts . | . . . Triggered . | . . . Disarmed . | . . . Reprogrammed . | . . . Reused . | . . . Traps Extracted . | . . . Installed . | . . . Triggered . | . . . Machines | -11 -10 -10 ---------- Run | Scr Mat Min Machines Disabled . | . . . Max in Single Turn . | . . . Machines Sabotaged . | . . . Garrisons Compromised . | . . . Overloaded Fab Kills . | . . . Fab Network Shutdowns . | . . . Hacking | -11 -10 -10 --------- Run | Scr Mat Min Machines Accessed . | . . . Terminals . | . . . Fabricators . | . . . Repair Stations . | . . . Recycling Units . | . . . Scanalyzers . | . . . Garrison Access . | . . . Total Hacks . | . . . Successful . | . . . Failed . | . . . Catastrophic . | . . . Database Lockouts . | . . . Manual . | . . . Terminals . | . . . Fabricators . | . . . Repair Stations . | . . . Recycling Units . | . . . Scanalyzers . | . . . Garrison Access . | . . . Terminal Hacks . | . . . Fabricator Hacks . | . . . Repair Station Hacks . | . . . Recycling Unit Hacks . | . . . Scanalyzer . | . . . Garrison Access Hacks . | . . . Unauthorized Hacks . | . . . Terminals . | . . . Fabricators . | . . . Repair Stations . | . . . Recycling Units . | . . . Scanalyzers . | . . . Garrison Access . | . . . Data Cores Recovered . | . . . Used . | . . . Hacking Detections . | . . . Full Trace Events . | . . . Feedback Events . | . . . Feedback Blocked . | . . . Robot Schematics Acquired . | . . . Robots Built . | . . . Matter . | . . . Time . | . . . Total Robot Build Rating . | . . . Part Schematics Acquired . | . . . Parts Built . | . . . Matter . | . . . Time . | . . . Total Part Build Rating . | . . . Parts Repaired . | . . . Time . | . . . Parts Recycled . | . . . Recycled Matter . | . . . Retrieved Matter . | . . . Retrieved Components . | . . . Parts Scanalyzed . | . . . Part Schematics Acquired . | . . . Parts Damaged . | . . . Bothacking | -11 -10 -10 ------------ Run | Scr Mat Min Used RIF Installer . | . . . Robots Hacked . | . . . Non-combat . | . . . Combat . | . . . Robot Hacks Applied . | . . . Relay Couplers Released . | . . . Robots Rewired . | . . . Allies Hacked . | . . . Hacks Repelled . | . . . Allies | -11 -10 -10 -------- Run | Scr Mat Min Total Allies 2 | . . 2 Largest Group 2 | . . 2 Highest-Rated Group 41 | . . 41 Highest-Rated Ally 31 | . . 31 Total Orders . | . . . Ally Attacks 2 | . . 2 Total Damage 21 | . . 21 Kills . | . . . Allies Corrupted . | . . . Allies Melted . | . . . Intel | -11 -10 -10 ------- Run | Scr Mat Min Robot Analysis Total . | . . . Derelict Logs Recovered . | . . . Drone Launches . | . . . Drone Recoveries . | . . . Exploration | -11 -10 -10 ------------- Run | Scr Mat Min Turns Passed 1332 | 11 609 712 Spaces Moved 628 | 5 255 368 Core . | . . . Treads 597 | . 245 352 Legs 15 | 5 10 . Wheels 16 | . . 16 Hover . | . . . Flight . | . . . Fastest Speed 120 | 120 120 120 Average Speed 160 | 120 158 162 Slowest Speed 180 | 120 160 180 Overloaded Moves . | . . . Propulsion Burnouts . | . . . Robots Hopped . | . . . Cave-ins Triggered . | . . . Exploration Rate (%) 46 | 2 51 86 Regions Visited 2 Branch Regions 1 Pre-discovered Areas . | . . . Known Exits Taken . | . . . Unknown Exits Taken 2 | 1 1 . Scrap Searched 1 | . . 1 Spaces Dug . | . . . Terrain Destroyed . | . . . Melee . | . . . Projectile . | . . . AOE . | . . . Actions | -11 -10 -10 --------- Run | Scr Mat Min Total 813 | 6 371 436 Wait 48 | . 25 23 Move 626 | 4 254 368 Hop . | . . . Pick Up 22 | . 19 3 Fast Attach 3 | . 1 2 Attach 5 | . 3 2 Detach . | . . . Swap 3 | . 2 1 Drop 14 | . 10 4 Fire 80 | 2 50 28 Melee . | . . . Ram . | . . . Kick . | . . . Crush 12 | . 7 5 Escape Stasis . | . . . Rewire . | . . . Trap . | . . . Miscellaneous . | . . . Route ------- -11/Scrapyard -10/Materials (discovered 2 exits: [*Mat] / [*Min]) -10/Mines (discovered 2 exits: [*Mat x2]) History --------- Turn | Location | Event 7 | -11/Scrapyard | Discovered new exit (range 3) 12 | -11/Scrapyard | Entered Materials 158 | -10/Materials | Discovered new exit (range 4) 301 | -10/Materials | Build established: Mutant 466 | -10/Materials | Discovered new exit (range 13) 486 | -10/Materials | Core integrity fell below 50% 621 | -10/Materials | Entered Mines 637 | -10/Mines | Discovered new exit (range 5) 1096 | -10/Mines | Discovered new exit (range 3) 1138 | -10/Mines | Core integrity fell below 20% 1333 | -10/Mines | Destroyed by S-10 Pest with Light Assault Rifle Last Messages --------------- 01096_ EXIT=FOUND 01116_ 72-PXZ(g) destroyed. 01124_ Y-45 Defender destroyed. 01124_ Switching to secondary target: Y-45 Defender. 01146_ Lgt. Treads destroyed. 01148_ Y-45 Defender destroyed. 01152_ Acquired 19 matter. 01155_ Acquired 10 matter. 01158_ Acquired Lgt. Treads. 01164_ Dropped Lgt. Treads. 01166_ Acquired Lgt. Angular Momentum Engine. 01167_ Acquired 10 matter. 01175_ Dropped Lgt. Assault Rifle. 01175_ Acquired Hvy. Assault Rifle. 01178_ Dropped Med. Storage Unit. 01179_ Acquired Lgt. Armor Plating. 01182_ Acquired 10 matter. 01260_ G-47 Trooper suffers critical hit. 01260_ G-47 Trooper destroyed. 01268_ Acquired 8 matter. Map ----- +----------------------------------------------------+ | ???# #### #???????????###??????????? | | ???# < ## #?????????## ^####???????? | | ???# ## ###???????## ^ #???????? | | ???# #????????## #?????????? | | ???# ## #???????## #?????????? | | ???##### #### #??????## #????????????? | | ???????# #??# #??##### #??????????????? | | ???????# #??# #??# #??????????????? | | ???????# #??# #??# ### ##?????????????? | | ???????# #??#*#??# #?## ###???????????? | | ???????# ####%#### #??## ##??????????? | | ???????# *=%!= #???## ##?????????? | | ???????# ###########????## ##????????? | | ????#### #########???????# ##???????? | | ????# #?????## #???????? | | ????# !! #??????## #???????? | | ????# !! #???????# #???????? | | ????# !! #???????# # ##???????? | | ????# !! #??????## ###????????? | | ????# #?????## ########???? | | ????# #????## | | ????# #???## #######???? | | ????################???# ##?????????? | | ???????????????????????# ##??????????? | | ??????????############### ##???????????? | | ??????????# @ ss #????????????? | | ??????????# ############## #????????????? | | ????????????????????????? #????????????? | | ???????????????????????? #????????????? | | ????#########??????????? ????????????? | | ????# #??????????## #??########## | | ????# #???????????### #??# | | ????# #?????????????? #??# ######## | | ????# < #?????????????? #??# #??????? | | ????# [#?????######??? #??# #??????? | | ????# %*#???### ##?? #??# #??????? | | ????# [==%#??## #?? #??# #??????? | | ????######%##### ### #### #??????? | | ?????????#%% !%= ## #??????? | | ?????????#%%==*! ## ###??????? | | ?????????#=### #### ####### #????????? | | ?????????# #?# ##??# #?????# ##???????? | | ?????????# #?## #?### #????## ##??????? | | ?????????# #??## ## ##???# #??????# | | ?????????# #???# ##??# #?????## | | ?????????# #???# """ ##?## ##?????# | | ?????????# #???# """ #### #??????# | | ?????????# #???## """ #??????## | | ?????????# #????## #### #???????? | | ?????????# #?##### ###??# #??????? | +----------------------------------------------------+ Best States ------------- Heat Dissipation 25 Energy Generation 10 Energy Capacity 250 Matter Stores 300 Matter Capacity 300 Sight Range 16 Terrain Scan Density 10 Evasion (%) 40 Recoil Reduction 2 Item Schematics ----------------- None Robot Schematics ------------------ None Fabricated ------------ Nothing Alien Tech Used ----------------- None Achievements -------------- None Challenges ------------ None Game ------ Seed SpectralAntimatterCasing Manual? 0 Play Time 00:12:00 Cumulative 646.2 hours Start 2020.01.28 @ 18:59:56 End 2020.01.28 @ 19:09:53 Sessions 1 Manual Loads 0 Difficulty Rogue Special Mode None Game No. 418 Rogue 418 Adventurer 0 Explorer 0 Win Type - Total 103 Types 69/6/8/10/5/1/4 Lore% 97 Gallery% 95 Achievement% 80 Wizard Run 0 Options --------- ASCII 0 Keyboard 0 Movement Numpad Keybinds 0 Fullscreen 2 Font 18/SmallcapsGlow Map View 76x50 Tactical HUD 1 Map Filters NONE Filters NONE Steam 1 RUN: 50303d32-ad52-4554-b4ee-20d1a023c9b2